Department family,Entity,Date,Expense type,Expense area,Supplier,Transaction number,Amount,VAT registration number,
Department for Business Energy and Industrial Strategy,Intellectual Property Office,12/01/2017,Information Technology,IT Directorate,Specialist Computer Centres Plc,OP-C146991CR-A,-33312.94,Not Applicable,
Department for Business Energy and Industrial Strategy,Intellectual Property Office,11/01/2017,Information Technology,IT Directorate,Specialist Computer Centres Plc,OP/C146991CR,-16971.40,Not Applicable,
Department for Business Energy and Industrial Strategy,Intellectual Property Office,23/01/2017,Information Technology,IT Directorate,Softcat Ltd,CRN0093285,-2354.35,Not Applicable,
Department for Business Energy and Industrial Strategy,Intellectual Property Office,11/01/2017,Legal & Hearings,Trade Mark Directorate,Marten Walsh Cherer Ltd,1143,-1681.22,Not Applicable,
Department for Business Energy and Industrial Strategy,Intellectual Property Office,12/01/2017,Accommodation,Projects,Wagstaff Interiors Group,I117466CR,-1477.50,Not Applicable,
Department for Business Energy and Industrial Strategy,Intellectual Property Office,12/01/2017,Postage & Delivery Costs,IT Directorate,Specialist Computer Centres Plc,OP-C149724-A,-1081.20,Not Applicable,
Department for Business Energy and Industrial Strategy,Intellectual Property Office,13/01/2017,Supporting UK Business,Trade Mark Directorate,Onixcia Joseph,53256CN,-778.08,Not Applicable,
Department for Business Energy and Industrial Strategy,Intellectual Property Office,20/01/2017,Travel & Subsistence,Trade Mark Directorate,Veezu Ltd T/A Dragon Taxis (Newport),1757,7.80,Not Applicable,
Department for Business Energy and Industrial Strategy,Intellectual Property Office,20/01/2017,Travel & Subsistence,People Places & Services Direc,Veezu Ltd T/A Dragon Taxis (Newport),1757,7.80,Not Applicable,
Department for Business Energy and Industrial Strategy,Intellectual Property Office,20/01/2017,Travel & Subsistence,Patent Directorate,Veezu Ltd T/A Dragon Taxis (Newport),1757,7.80,Not Applicable,
Department for Business Energy and Industrial Strategy,Intellectual Property Office,20/01/2017,Travel & Subsistence,Innovation Directorate,Veezu Ltd T/A Dragon Taxis (Newport),1757,14.64,Not Applicable,
Department for Business Energy and Industrial Strategy,Intellectual Property Office,20/01/2017,Travel & Subsistence,Copyright & Enforcement Direct,Veezu Ltd T/A Dragon Taxis (Newport),1757,14.70,Not Applicable,
Department for Business Energy and Industrial Strategy,Intellectual Property Office,20/01/2017,Travel & Subsistence,People Places & Services Direc,Veezu Ltd T/A Dragon Taxis (Newport),1757,15.60,Not Applicable,
Department for Business Energy and Industrial Strategy,Intellectual Property Office,20/01/2017,Travel & Subsistence,Finance Directorate,Veezu Ltd T/A Dragon Taxis (Newport),1757,24.00,Not Applicable,
Department for Business Energy and Industrial Strategy,Intellectual Property Office,20/01/2017,Travel & Subsistence,Projects,Veezu Ltd T/A Dragon Taxis (Newport),1757,28.92,Not Applicable,
Department for Business Energy and Industrial Strategy,Intellectual Property Office,20/01/2017,Travel & Subsistence,Copyright & Enforcement Direct,Veezu Ltd T/A Dragon Taxis (Newport),1757,30.18,Not Applicable,
Department for Business Energy and Industrial Strategy,Intellectual Property Office,13/01/2017,Office Supplies,People Places & Services Direc,VCUK TWC Facilities Division,17010528,33.60,Not Applicable,
Department for Business Energy and Industrial Strategy,Intellectual Property Office,20/01/2017,Travel & Subsistence,Trade Mark Directorate,Veezu Ltd T/A Dragon Taxis (Newport),1757,36.78,Not Applicable,
Department for Business Energy and Industrial Strategy,Intellectual Property Office,20/01/2017,Travel & Subsistence,Innovation Directorate,Veezu Ltd T/A Dragon Taxis (Newport),1757,50.70,Not Applicable,
Department for Business Energy and Industrial Strategy,Intellectual Property Office,13/01/2017,Miscellaneous Expenses General,Innovation Directorate,VCUK TWC Facilities Division,17010528,64.80,Not Applicable,
Department for Business Energy and Industrial Strategy,Intellectual Property Office,13/01/2017,Miscellaneous Expenses General,People Places & Services Direc,VCUK TWC Facilities Division,17010528,78.00,Not Applicable,
Department for Business Energy and Industrial Strategy,Intellectual Property Office,20/01/2017,Travel & Subsistence,Innovation Directorate,Veezu Ltd T/A Dragon Taxis (Newport),1757,89.40,Not Applicable,
Department for Business Energy and Industrial Strategy,Intellectual Property Office,13/01/2017,Miscellaneous Expenses General,People Places & Services Direc,VCUK TWC Facilities Division,17010528,93.60,Not Applicable,
Department for Business Energy and Industrial Strategy,Intellectual Property Office,13/01/2017,Miscellaneous Expenses General,International Policy Directora,VCUK TWC Facilities Division,17010528,110.88,Not Applicable,
Department for Business Energy and Industrial Strategy,Intellectual Property Office,20/01/2017,Travel & Subsistence,People Places & Services Direc,Veezu Ltd T/A Dragon Taxis (Newport),1757,116.22,Not Applicable,
Department for Business Energy and Industrial Strategy,Intellectual Property Office,13/01/2017,Pay Costs,People Places & Services Direc,Brook Street (UK) Ltd,30201668,152.46,Not Applicable,
Department for Business Energy and Industrial Strategy,Intellectual Property Office,20/01/2017,Travel & Subsistence,International Policy Directora,Veezu Ltd T/A Dragon Taxis (Newport),1757,168.60,Not Applicable,
Department for Business Energy and Industrial Strategy,Intellectual Property Office,20/01/2017,Miscellaneous Expenses General,Innovation Directorate,Veezu Ltd T/A Dragon Taxis (Newport),1757,198.30,Not Applicable,
Department for Business Energy and Industrial Strategy,Intellectual Property Office,06/01/2017,Pay Costs,People Places & Services Direc,Brook Street (UK) Ltd,30194578,217.80,Not Applicable,
Department for Business Energy and Industrial Strategy,Intellectual Property Office,06/01/2017,Travel & Subsistence,Finance Directorate,Companies House,S0001797564,233.00,Not Applicable,
Department for Business Energy and Industrial Strategy,Intellectual Property Office,13/01/2017,Pay Costs,Patent Directorate,Brook Street (UK) Ltd,30201668,316.98,Not Applicable,
Department for Business Energy and Industrial Strategy,Intellectual Property Office,04/01/2017,Pay Costs,People Places & Services Direc,Brook Street (UK) Ltd,30184111,319.44,Not Applicable,
Department for Business Energy and Industrial Strategy,Intellectual Property Office,13/01/2017,Pay Costs,Patent Directorate,Brook Street (UK) Ltd,30201668,319.44,Not Applicable,
Department for Business Energy and Industrial Strategy,Intellectual Property Office,13/01/2017,Pay Costs,Patent Directorate,Brook Street (UK) Ltd,30201668,362.06,Not Applicable,
Department for Business Energy and Industrial Strategy,Intellectual Property Office,04/01/2017,Pay Costs,Patent Directorate,Brook Street (UK) Ltd,30172763,394.46,Not Applicable,
Department for Business Energy and Industrial Strategy,Intellectual Property Office,04/01/2017,Pay Costs,Patent Directorate,Brook Street (UK) Ltd,30184111,428.34,Not Applicable,
Department for Business Energy and Industrial Strategy,Intellectual Property Office,06/01/2017,Pay Costs,Patent Directorate,Brook Street (UK) Ltd,30194578,428.34,Not Applicable,
Department for Business Energy and Industrial Strategy,Intellectual Property Office,23/01/2017,Legal & Hearings,Patent Directorate,Government Legal Department,436654,429.78,Not Applicable,
Department for Business Energy and Industrial Strategy,Intellectual Property Office,04/01/2017,Pay Costs,Patent Directorate,Brook Street (UK) Ltd,30184111,435.60,Not Applicable,
Department for Business Energy and Industrial Strategy,Intellectual Property Office,13/01/2017,Pay Costs,Patent Directorate,Brook Street (UK) Ltd,30201668,435.60,Not Applicable,
Department for Business Energy and Industrial Strategy,Intellectual Property Office,06/01/2017,Pay Costs,Patent Directorate,Brook Street (UK) Ltd,30194578,451.92,Not Applicable,
Department for Business Energy and Industrial Strategy,Intellectual Property Office,20/01/2017,Legal & Hearings,Trade Mark Directorate,Government Legal Department,436562,478.46,Not Applicable,
Department for Business Energy and Industrial Strategy,Intellectual Property Office,04/01/2017,Pay Costs,Patent Directorate,Brook Street (UK) Ltd,30172763,482.76,Not Applicable,
Department for Business Energy and Industrial Strategy,Intellectual Property Office,04/01/2017,Pay Costs,Patent Directorate,Brook Street (UK) Ltd,30172763,509.84,Not Applicable,
Department for Business Energy and Industrial Strategy,Intellectual Property Office,17/01/2017,Miscellaneous Expenses General,People Places & Services Direc,RM Gilbert,SB 16/01/17,520.75,Not Applicable,
Department for Business Energy and Industrial Strategy,Intellectual Property Office,12/01/2017,Information Technology,IT Directorate,Specialist Computer Centres Plc,OP-M195715A,521.04,Not Applicable,
Department for Business Energy and Industrial Strategy,Intellectual Property Office,06/01/2017,Information Technology,Projects,Advanced Business Solutions,ARXI-00001141,522.38,Not Applicable,
Department for Business Energy and Industrial Strategy,Intellectual Property Office,23/01/2017,Telecoms,IT Directorate,Talk Talk Business,16180460,522.88,Not Applicable,
Department for Business Energy and Industrial Strategy,Intellectual Property Office,23/01/2017,Pay Costs,Finance Directorate,Accountancy Recruitment Wales,2411,522.88,Not Applicable,
Department for Business Energy and Industrial Strategy,Intellectual Property Office,12/01/2017,Telecoms,IT Directorate,VIRGIN MEDIA,409092201-09JAN,526.06,Not Applicable,
Department for Business Energy and Industrial Strategy,Intellectual Property Office,04/01/2017,Pay Costs,People Places & Services Direc,Brook Street (UK) Ltd,30172763,537.24,Not Applicable,
Department for Business Energy and Industrial Strategy,Intellectual Property Office,04/01/2017,Pay Costs,Patent Directorate,Brook Street (UK) Ltd,30172763,537.24,Not Applicable,
Department for Business Energy and Industrial Strategy,Intellectual Property Office,04/01/2017,Pay Costs,Patent Directorate,Brook Street (UK) Ltd,30172763,537.24,Not Applicable,
Department for Business Energy and Industrial Strategy,Intellectual Property Office,04/01/2017,Pay Costs,Patent Directorate,Brook Street (UK) Ltd,30184111,537.24,Not Applicable,
Department for Business Energy and Industrial Strategy,Intellectual Property Office,04/01/2017,Pay Costs,Patent Directorate,Brook Street (UK) Ltd,30184111,537.24,Not Applicable,
Department for Business Energy and Industrial Strategy,Intellectual Property Office,04/01/2017,Land & Buildings Gross,Balance Sheet,Clarity,TR0044,539.80,Not Applicable,
Department for Business Energy and Industrial Strategy,Intellectual Property Office,10/01/2017,Miscellaneous Expenses General,People Places & Services Direc,Capital Law LLP,20037371,540.00,Not Applicable,
Department for Business Energy and Industrial Strategy,Intellectual Property Office,05/01/2017,Travel & Subsistence,International Policy Directora,Willa Huang,OS000000192,541.20,Not Applicable,
Department for Business Energy and Industrial Strategy,Intellectual Property Office,12/01/2017,Telecoms,IT Directorate,Specialist Computer Centres Plc,OP-M180489A,542.48,Not Applicable,
Department for Business Energy and Industrial Strategy,Intellectual Property Office,13/01/2017,Pay Costs,International Policy Directora,Brook Street (UK) Ltd,30201669,554.06,Not Applicable,
Department for Business Energy and Industrial Strategy,Intellectual Property Office,18/01/2017,Accommodation,People Places & Services Direc,Adare SEC t/a Kalamazoo Direct,IN0124727,567.66,Not Applicable,
Department for Business Energy and Industrial Strategy,Intellectual Property Office,16/01/2017,Misc Expenses Finance,Finance Directorate,G4S Cash Services (UK) Ltd,2017988,575.26,Not Applicable,
Department for Business Energy and Industrial Strategy,Intellectual Property Office,16/01/2017,Staff Costs,Innovation Directorate,GovNet Communications,113192,594.00,Not Applicable,
Department for Business Energy and Industrial Strategy,Intellectual Property Office,10/01/2017,Marketing & Publicity,Innovation Directorate,Manchester Chartered Accounts,MCA3351,600.00,Not Applicable,
Department for Business Energy and Industrial Strategy,Intellectual Property Office,04/01/2017,Postage & Delivery Costs,People Places & Services Direc,DHL International (UK) Ltd,BRS0053183,611.56,Not Applicable,
Department for Business Energy and Industrial Strategy,Intellectual Property Office,06/01/2017,Pay Costs,Finance Directorate,Accountancy Recruitment Wales,2386,618.82,Not Applicable,
Department for Business Energy and Industrial Strategy,Intellectual Property Office,12/01/2017,Postage & Delivery Costs,People Places & Services Direc,Parcelforce Worldwide,9053661211,625.28,Not Applicable,
Department for Business Energy and Industrial Strategy,Intellectual Property Office,16/01/2017,Information Technology,IT Directorate,Comparex Ltd,160008070VRUKA,627.17,Not Applicable,
Department for Business Energy and Industrial Strategy,Intellectual Property Office,03/01/2017,Staff Costs,People Places & Services Direc,Sodexo Motivation Solutions UK Ltd,3265872,627.44,Not Applicable,
Department for Business Energy and Industrial Strategy,Intellectual Property Office,13/01/2017,Miscellaneous Expenses General,Patent Directorate,VCUK TWC Facilities Division,17010528,633.00,Not Applicable,
Department for Business Energy and Industrial Strategy,Intellectual Property Office,30/01/2017,Accommodation,People Places & Services Direc,Thomas Waste Management Ltd,167019,648.00,Not Applicable,
Department for Business Energy and Industrial Strategy,Intellectual Property Office,10/01/2017,Office Supplies,Finance Directorate,Antalis,6464442,649.20,Not Applicable,
Department for Business Energy and Industrial Strategy,Intellectual Property Office,13/01/2017,Office Supplies,Finance Directorate,Antalis,6479063,649.20,Not Applicable,
Department for Business Energy and Industrial Strategy,Intellectual Property Office,18/01/2017,Stock,Balance Sheet,Brabners Chaffe Street LLP,D05023,660.00,Not Applicable,
Department for Business Energy and Industrial Strategy,Intellectual Property Office,06/01/2017,Miscellaneous Expenses General,International Policy Directora,Global Voices Ltd,51510,660.00,Not Applicable,
Department for Business Energy and Industrial Strategy,Intellectual Property Office,30/01/2017,Staff Costs,People Places & Services Direc,ST JOHN AMBULANCE SHARED SERVICES CENTRE,104960,662.40,Not Applicable,
Department for Business Energy and Industrial Strategy,Intellectual Property Office,04/01/2017,Pay Costs,International Policy Directora,Brook Street (UK) Ltd,30172764,677.88,Not Applicable,
Department for Business Energy and Industrial Strategy,Intellectual Property Office,05/01/2017,Pay Costs,International Policy Directora,Brook Street (UK) Ltd,30184112,677.88,Not Applicable,
Department for Business Energy and Industrial Strategy,Intellectual Property Office,13/01/2017,Pay Costs,Patent Directorate,Brook Street (UK) Ltd,30201668,686.64,Not Applicable,
Department for Business Energy and Industrial Strategy,Intellectual Property Office,18/01/2017,Information Technology,IT Directorate,Loadbalancer.org Limited,2720,695.00,Not Applicable,
Department for Business Energy and Industrial Strategy,Intellectual Property Office,24/01/2017,Accommodation,People Places & Services Direc,Quality Floorcare Ltd,15462,714.00,Not Applicable,
Department for Business Energy and Industrial Strategy,Intellectual Property Office,30/01/2017,Marketing & Publicity,IT Directorate,PA Promotions Ltd,13451,715.09,Not Applicable,
Department for Business Energy and Industrial Strategy,Intellectual Property Office,17/01/2017,Staff Costs,People Places & Services Direc,Stonewall Equality Ltd,51387,720.00,Not Applicable,
Department for Business Energy and Industrial Strategy,Intellectual Property Office,05/01/2017,Information Technology,IT Directorate,XMA LIMITED,BC93216,722.40,Not Applicable,
Department for Business Energy and Industrial Strategy,Intellectual Property Office,05/01/2017,Staff Costs,Innovation Directorate,RADA Enterprise,16542,780.00,Not Applicable,
Department for Business Energy and Industrial Strategy,Intellectual Property Office,05/01/2017,Telecoms,IT Directorate,THREE,ALK51508658,789.25,Not Applicable,
Department for Business Energy and Industrial Strategy,Intellectual Property Office,04/01/2017,Office Supplies,Finance Directorate,Banner  Business Supplies Ltd,32712847,789.68,Not Applicable,
Department for Business Energy and Industrial Strategy,Intellectual Property Office,16/01/2017,Supporting UK Business,Innovation Directorate,Factiva Limited,79188340,813.60,Not Applicable,
Department for Business Energy and Industrial Strategy,Intellectual Property Office,06/01/2017,Pay Costs,Patent Directorate,Brook Street (UK) Ltd,30194578,827.88,Not Applicable,
Department for Business Energy and Industrial Strategy,Intellectual Property Office,20/01/2017,Staff Costs,IT Directorate,Responsiv Solutions Limited,RSL0176,840.00,Not Applicable,
Department for Business Energy and Industrial Strategy,Intellectual Property Office,04/01/2017,Information Technology,IT Directorate,Probrand Ltd,OP/I558198,847.08,Not Applicable,
Department for Business Energy and Industrial Strategy,Intellectual Property Office,04/01/2017,Pay Costs,Patent Directorate,Brook Street (UK) Ltd,30184111,873.88,Not Applicable,
Department for Business Energy and Industrial Strategy,Intellectual Property Office,04/01/2017,Travel & Subsistence,Patent Directorate,Andrew Bartlett,OS000000176,874.48,Not Applicable,
Department for Business Energy and Industrial Strategy,Intellectual Property Office,13/01/2017,Supporting UK Business,Trade Mark Directorate,Onixcia Joseph,53182/53256,877.40,Not Applicable,
Department for Business Energy and Industrial Strategy,Intellectual Property Office,13/01/2017,Pay Costs,Patent Directorate,Brook Street (UK) Ltd,30201668,880.79,Not Applicable,
Department for Business Energy and Industrial Strategy,Intellectual Property Office,06/01/2017,Office Supplies,Finance Directorate,Antalis,6434812,889.99,Not Applicable,
Department for Business Energy and Industrial Strategy,Intellectual Property Office,04/01/2017,Marketing & Publicity,Innovation Directorate,Concept Furniture International Ltd,21965,892.80,Not Applicable,
Department for Business Energy and Industrial Strategy,Intellectual Property Office,19/01/2017,Information Technology,Projects,Top Level Computing,4817,909.79,Not Applicable,
Department for Business Energy and Industrial Strategy,Intellectual Property Office,27/01/2017,Information Technology,People Places & Services Direc,Sedao Ltd,4292,910.80,Not Applicable,
Department for Business Energy and Industrial Strategy,Intellectual Property Office,09/01/2017,Information Technology,IT Directorate,Computacenter (UK) ltd,3881046272,941.40,Not Applicable,
Department for Business Energy and Industrial Strategy,Intellectual Property Office,05/01/2017,Travel & Subsistence,People Places & Services Direc,Sean N Dennehey,OS000000208,978.23,Not Applicable,
Department for Business Energy and Industrial Strategy,Intellectual Property Office,24/01/2017,Information Technology,IT Directorate,Ripe NCC,17000755,986.36,Not Applicable,
Department for Business Energy and Industrial Strategy,Intellectual Property Office,05/01/2017,Staff Costs,People Places & Services Direc,Acorn Recruitment Ltd,APS02931,1020.00,Not Applicable,
Department for Business Energy and Industrial Strategy,Intellectual Property Office,06/01/2017,Pay Costs,Patent Directorate,Brook Street (UK) Ltd,30194578,1026.61,Not Applicable,
Department for Business Energy and Industrial Strategy,Intellectual Property Office,12/01/2017,Postage & Delivery Costs,People Places & Services Direc,DHL International (UK) Ltd,BRS0074622,1035.63,Not Applicable,
Department for Business Energy and Industrial Strategy,Intellectual Property Office,04/01/2017,Pay Costs,Patent Directorate,Brook Street (UK) Ltd,30184111,1064.09,Not Applicable,
Department for Business Energy and Industrial Strategy,Intellectual Property Office,27/01/2017,Telecoms,Projects,CCS MEDIA,2716905,1075.30,Not Applicable,
Department for Business Energy and Industrial Strategy,Intellectual Property Office,04/01/2017,Pay Costs,Patent Directorate,Brook Street (UK) Ltd,30172763,1077.24,Not Applicable,
Department for Business Energy and Industrial Strategy,Intellectual Property Office,12/01/2017,Information Technology,IT Directorate,Specialist Computer Centres Plc,OP-M219996A,1081.20,Not Applicable,
Department for Business Energy and Industrial Strategy,Intellectual Property Office,09/01/2017,Information Technology,Patent Directorate,American Chemical Society,1094266,1112.85,Not Applicable,
Department for Business Energy and Industrial Strategy,Intellectual Property Office,30/01/2017,Information Technology,IT Directorate,Capita Business Services  Ltd,LO10173625,1144.46,Not Applicable,
Department for Business Energy and Industrial Strategy,Intellectual Property Office,12/01/2017,Information Technology,Innovation Directorate,Specialist Computer Centres Plc,OP-M183477A,1156.13,Not Applicable,
Department for Business Energy and Industrial Strategy,Intellectual Property Office,19/01/2017,Information Technology,Projects,Top Level Computing,4831,1162.27,Not Applicable,
Department for Business Energy and Industrial Strategy,Intellectual Property Office,12/01/2017,Staff Costs,People Places & Services Direc,Involve Me Training and Development Ltd,109,1200.00,Not Applicable,
Department for Business Energy and Industrial Strategy,Intellectual Property Office,04/01/2017,Pay Costs,Patent Directorate,Brook Street (UK) Ltd,30172763,1210.77,Not Applicable,
Department for Business Energy and Industrial Strategy,Intellectual Property Office,12/01/2017,Information Technology,People Places & Services Direc,Specialist Computer Centres Plc,OP-M223742A,1254.62,Not Applicable,
Department for Business Energy and Industrial Strategy,Intellectual Property Office,13/01/2017,Accommodation,People Places & Services Direc,Jaguar Building Services Ltd,69327,1267.19,Not Applicable,
Department for Business Energy and Industrial Strategy,Intellectual Property Office,05/01/2017,Supporting UK Business,Innovation Directorate,SGS United Kingdom Ltd,WWB1103273,1287.30,Not Applicable,
Department for Business Energy and Industrial Strategy,Intellectual Property Office,13/01/2017,Accommodation,People Places & Services Direc,SIG TRADING LTD,7033-60008675,1324.36,Not Applicable,
Department for Business Energy and Industrial Strategy,Intellectual Property Office,16/01/2017,Accommodation,People Places & Services Direc,EDF ENERGY,2428277,1352.80,Not Applicable,
Department for Business Energy and Industrial Strategy,Intellectual Property Office,05/01/2017,Miscellaneous Expenses General,International Policy Directora,INNGOT LTD,M1612-1,1393.30,Not Applicable,
Department for Business Energy and Industrial Strategy,Intellectual Property Office,10/01/2017,Staff Costs,IT Directorate,The Clive Davis Partnership Ltd.,CDSC-2605,1440.00,Not Applicable,
Department for Business Energy and Industrial Strategy,Intellectual Property Office,18/01/2017,Legal & Hearings,Patent Directorate,Marten Walsh Cherer Ltd,93978,1452.06,Not Applicable,
Department for Business Energy and Industrial Strategy,Intellectual Property Office,13/01/2017,Pay Costs,Patent Directorate,Brook Street (UK) Ltd,30201668,1491.70,Not Applicable,
Department for Business Energy and Industrial Strategy,Intellectual Property Office,13/01/2017,Information Technology,IT Directorate,Capita Business Services  Ltd,LO10170827,1493.44,Not Applicable,
Department for Business Energy and Industrial Strategy,Intellectual Property Office,30/01/2017,Marketing & Publicity,Innovation Directorate,Aardman Animations Ltd,33343,1539.60,Not Applicable,
Department for Business Energy and Industrial Strategy,Intellectual Property Office,25/01/2017,Staff Costs,Copyright & Enforcement Direct,Research & Intelligence Support Centre L,T/2158,1548.00,Not Applicable,
Department for Business Energy and Industrial Strategy,Intellectual Property Office,04/01/2017,Pay Costs,Patent Directorate,Brook Street (UK) Ltd,30172763,1557.24,Not Applicable,
Department for Business Energy and Industrial Strategy,Intellectual Property Office,13/01/2017,Information Technology,IT Directorate,Capita Business Services  Ltd,LO10170827,1569.01,Not Applicable,
Department for Business Energy and Industrial Strategy,Intellectual Property Office,06/01/2017,Pay Costs,Patent Directorate,Brook Street (UK) Ltd,30194578,1574.70,Not Applicable,
Department for Business Energy and Industrial Strategy,Intellectual Property Office,13/01/2017,Pay Costs,Patent Directorate,Brook Street (UK) Ltd,30201668,1600.43,Not Applicable,
Department for Business Energy and Industrial Strategy,Intellectual Property Office,16/01/2017,Legal & Hearings,Trade Mark Directorate,Marten Walsh Cherer Ltd,93895A,1613.83,Not Applicable,
Department for Business Energy and Industrial Strategy,Intellectual Property Office,09/01/2017,Office Supplies,Finance Directorate,Print On Solutions Ltd (North West),149728,1626.84,Not Applicable,
Department for Business Energy and Industrial Strategy,Intellectual Property Office,16/01/2017,Postage & Delivery Costs,People Places & Services Direc,Royal Mail,9053674594,1649.75,Not Applicable,
Department for Business Energy and Industrial Strategy,Intellectual Property Office,13/01/2017,Pay Costs,Patent Directorate,Brook Street (UK) Ltd,30201668,1650.84,Not Applicable,
Department for Business Energy and Industrial Strategy,Intellectual Property Office,11/01/2017,Legal & Hearings,Trade Mark Directorate,Marten Walsh Cherer Ltd,93895,1681.22,Not Applicable,
Department for Business Energy and Industrial Strategy,Intellectual Property Office,04/01/2017,Pay Costs,Patent Directorate,Brook Street (UK) Ltd,30184111,1687.80,Not Applicable,
Department for Business Energy and Industrial Strategy,Intellectual Property Office,24/01/2017,Miscellaneous Expenses General,International Policy Directora,Lancaster University,8669545,1715.56,Not Applicable,
Department for Business Energy and Industrial Strategy,Intellectual Property Office,30/01/2017,Postage & Delivery Costs,People Places & Services Direc,Royal Mail,9053755013,1717.29,Not Applicable,
Department for Business Energy and Industrial Strategy,Intellectual Property Office,13/01/2017,Information Technology,IT Directorate,LA International Computer Consultants Lt,LA415159,1720.84,Not Applicable,
Department for Business Energy and Industrial Strategy,Intellectual Property Office,04/01/2017,Pay Costs,Patent Directorate,Brook Street (UK) Ltd,30184111,1739.88,Not Applicable,
Department for Business Energy and Industrial Strategy,Intellectual Property Office,12/01/2017,Accommodation,Projects,Wagstaff Interiors Group,I117466,1773.00,Not Applicable,
Department for Business Energy and Industrial Strategy,Intellectual Property Office,23/01/2017,Marketing & Publicity,Innovation Directorate,Prysm Food and Drink Ltd,INV-1946,1800.00,Not Applicable,
Department for Business Energy and Industrial Strategy,Intellectual Property Office,04/01/2017,Pay Costs,Patent Directorate,Brook Street (UK) Ltd,30184111,1803.13,Not Applicable,
Department for Business Energy and Industrial Strategy,Intellectual Property Office,04/01/2017,Miscellaneous Expenses General,Innovation Directorate,Holiday Inn,2016024659,1860.00,Not Applicable,
Department for Business Energy and Industrial Strategy,Intellectual Property Office,13/01/2017,Information Technology,IT Directorate,Capita Business Services  Ltd,LO10170827,1955.83,Not Applicable,
Department for Business Energy and Industrial Strategy,Intellectual Property Office,11/01/2017,Staff Costs,IT Directorate,Stayahead Training Ltd,26317,1974.00,Not Applicable,
Department for Business Energy and Industrial Strategy,Intellectual Property Office,06/01/2017,Marketing & Publicity,Innovation Directorate,Ascential Events Limited,EV-SIN054375,1990.56,Not Applicable,
Department for Business Energy and Industrial Strategy,Intellectual Property Office,04/01/2017,Pay Costs,Patent Directorate,Brook Street (UK) Ltd,30172763,1995.66,Not Applicable,
Department for Business Energy and Industrial Strategy,Intellectual Property Office,13/01/2017,Information Technology,IT Directorate,Capita Business Services  Ltd,LO10170827,2005.25,Not Applicable,
Department for Business Energy and Industrial Strategy,Intellectual Property Office,26/01/2017,Information Technology,IT Directorate,LA International Computer Consultants Lt,LA416388,2101.26,Not Applicable,
Department for Business Energy and Industrial Strategy,Intellectual Property Office,13/01/2017,Information Technology,IT Directorate,Capita Business Services  Ltd,LO10170827,2121.48,Not Applicable,
Department for Business Energy and Industrial Strategy,Intellectual Property Office,04/01/2017,Pay Costs,Patent Directorate,Brook Street (UK) Ltd,30172763,2133.51,Not Applicable,
Department for Business Energy and Industrial Strategy,Intellectual Property Office,18/01/2017,Postage & Delivery Costs,People Places & Services Direc,DHL International (UK) Ltd,BRS0087747,2143.21,Not Applicable,
Department for Business Energy and Industrial Strategy,Intellectual Property Office,04/01/2017,Accommodation,People Places & Services Direc,PHS Group,64417847,2162.40,Not Applicable,
Department for Business Energy and Industrial Strategy,Intellectual Property Office,23/01/2017,Supporting UK Business,Innovation Directorate,ICIPIA Ltd,IPO020,2166.67,Not Applicable,
Department for Business Energy and Industrial Strategy,Intellectual Property Office,23/01/2017,Supporting UK Business,Innovation Directorate,Tame IP,IN019,2166.67,Not Applicable,
Department for Business Energy and Industrial Strategy,Intellectual Property Office,09/01/2017,Information Technology,IT Directorate,Capita Business Services  Ltd,LO10168627,2218.46,Not Applicable,
Department for Business Energy and Industrial Strategy,Intellectual Property Office,06/01/2017,Office Supplies,Patent Directorate,British Library,139780421,2229.17,Not Applicable,
Department for Business Energy and Industrial Strategy,Intellectual Property Office,05/01/2017,Miscellaneous Expenses General,International Policy Directora,Marta Diaz Pozo,UKIPO001,2240.00,Not Applicable,
Department for Business Energy and Industrial Strategy,Intellectual Property Office,13/01/2017,Information Technology,IT Directorate,Capita Business Services  Ltd,LO10170827,2241.58,Not Applicable,
Department for Business Energy and Industrial Strategy,Intellectual Property Office,27/01/2017,Postage & Delivery Costs,People Places & Services Direc,DHL International (UK) Ltd,BRS0101976,2272.52,Not Applicable,
Department for Business Energy and Industrial Strategy,Intellectual Property Office,10/01/2017,Legal & Hearings,Trade Mark Directorate,Marten Walsh Cherer Ltd,93894,2294.39,Not Applicable,
Department for Business Energy and Industrial Strategy,Intellectual Property Office,05/01/2017,Travel & Subsistence,IT Directorate,Lex Autolease Limited,MRI4677556,2378.74,Not Applicable,
Department for Business Energy and Industrial Strategy,Intellectual Property Office,13/01/2017,Information Technology,IT Directorate,Capita Business Services  Ltd,LO10170827,2389.06,Not Applicable,
Department for Business Energy and Industrial Strategy,Intellectual Property Office,24/01/2017,Information Technology,IT Directorate,Capita Business Services  Ltd,LO10171744,2389.06,Not Applicable,
Department for Business Energy and Industrial Strategy,Intellectual Property Office,30/01/2017,Information Technology,IT Directorate,Capita Business Services  Ltd,LO10173625,2395.42,Not Applicable,
Department for Business Energy and Industrial Strategy,Intellectual Property Office,24/01/2017,Information Technology,IT Directorate,Capita Business Services  Ltd,LO10171744,2558.89,Not Applicable,
Department for Business Energy and Industrial Strategy,Intellectual Property Office,09/01/2017,Miscellaneous Expenses General,Innovation Directorate,CPD Certification Service Ltd,1605,2574.00,Not Applicable,
Department for Business Energy and Industrial Strategy,Intellectual Property Office,24/01/2017,Information Technology,IT Directorate,Capita Business Services  Ltd,LO10171744,2595.96,Not Applicable,
Department for Business Energy and Industrial Strategy,Intellectual Property Office,23/01/2017,Supporting UK Business,Innovation Directorate,Urquhart Dykes & Lord LLP,450264,2598.00,Not Applicable,
Department for Business Energy and Industrial Strategy,Intellectual Property Office,23/01/2017,Supporting UK Business,Innovation Directorate,IP21 LTD,18746,2599.20,Not Applicable,
Department for Business Energy and Industrial Strategy,Intellectual Property Office,20/01/2017,Supporting UK Business,Innovation Directorate,Bartle Read Ltd,3095,2599.99,Not Applicable,
Department for Business Energy and Industrial Strategy,Intellectual Property Office,04/01/2017,Supporting UK Business,Innovation Directorate,Harrison Goddard Foote,419529,2600.00,Not Applicable,
Department for Business Energy and Industrial Strategy,Intellectual Property Office,20/01/2017,Supporting UK Business,Innovation Directorate,Lincoln IP,6653,2600.00,Not Applicable,
Department for Business Energy and Industrial Strategy,Intellectual Property Office,27/01/2017,Supporting UK Business,Innovation Directorate,Lincoln IP,6692,2600.00,Not Applicable,
Department for Business Energy and Industrial Strategy,Intellectual Property Office,19/01/2017,Supporting UK Business,Innovation Directorate,Marks & Clerk LLP,7078688,2600.00,Not Applicable,
Department for Business Energy and Industrial Strategy,Intellectual Property Office,10/01/2017,Supporting UK Business,Innovation Directorate,LAWRIE INTELLECTUAL PROPERTY,108651,2600.00,Not Applicable,
Department for Business Energy and Industrial Strategy,Intellectual Property Office,04/01/2017,Supporting UK Business,Innovation Directorate,LAWRIE INTELLECTUAL PROPERTY,108740,2600.00,Not Applicable,
Department for Business Energy and Industrial Strategy,Intellectual Property Office,04/01/2017,Supporting UK Business,Innovation Directorate,LAWRIE INTELLECTUAL PROPERTY,108760,2600.00,Not Applicable,
Department for Business Energy and Industrial Strategy,Intellectual Property Office,23/01/2017,Supporting UK Business,Innovation Directorate,LAWRIE INTELLECTUAL PROPERTY,108888,2600.00,Not Applicable,
Department for Business Energy and Industrial Strategy,Intellectual Property Office,20/01/2017,Supporting UK Business,Innovation Directorate,LAWRIE INTELLECTUAL PROPERTY,108933,2600.00,Not Applicable,
Department for Business Energy and Industrial Strategy,Intellectual Property Office,20/01/2017,Supporting UK Business,Innovation Directorate,LAWRIE INTELLECTUAL PROPERTY,108954,2600.00,Not Applicable,
Department for Business Energy and Industrial Strategy,Intellectual Property Office,17/01/2017,Supporting UK Business,Innovation Directorate,INNGOT LTD,M1612-3,2600.00,Not Applicable,
Department for Business Energy and Industrial Strategy,Intellectual Property Office,04/01/2017,Supporting UK Business,Innovation Directorate,STEPHENS SCOWN LLP,68057,2600.00,Not Applicable,
Department for Business Energy and Industrial Strategy,Intellectual Property Office,17/01/2017,Supporting UK Business,Innovation Directorate,Lean IP,INV2086,2600.00,Not Applicable,
Department for Business Energy and Industrial Strategy,Intellectual Property Office,27/01/2017,Supporting UK Business,Innovation Directorate,Lean IP,INV2093,2600.00,Not Applicable,
Department for Business Energy and Industrial Strategy,Intellectual Property Office,19/01/2017,Supporting UK Business,Innovation Directorate,Thorntons,909304,2600.00,Not Applicable,
Department for Business Energy and Industrial Strategy,Intellectual Property Office,17/01/2017,Supporting UK Business,Innovation Directorate,Metis Partners Ltd,1102,2600.00,Not Applicable,
Department for Business Energy and Industrial Strategy,Intellectual Property Office,27/01/2017,Supporting UK Business,Innovation Directorate,MacRoberts LLP,I/17/0075,2600.00,Not Applicable,
Department for Business Energy and Industrial Strategy,Intellectual Property Office,04/01/2017,Supporting UK Business,Innovation Directorate,Wilson Gunn,62365M,2600.00,Not Applicable,
Department for Business Energy and Industrial Strategy,Intellectual Property Office,10/01/2017,Supporting UK Business,Innovation Directorate,K. W. Peter & Co,101583,2600.00,Not Applicable,
Department for Business Energy and Industrial Strategy,Intellectual Property Office,20/01/2017,Supporting UK Business,Innovation Directorate,K. W. Peter & Co,101595,2600.00,Not Applicable,
Department for Business Energy and Industrial Strategy,Intellectual Property Office,04/01/2017,Supporting UK Business,Innovation Directorate,Scintilla,INV-00796,2600.00,Not Applicable,
Department for Business Energy and Industrial Strategy,Intellectual Property Office,20/01/2017,Supporting UK Business,Innovation Directorate,Scintilla,INV-00820,2600.00,Not Applicable,
Department for Business Energy and Industrial Strategy,Intellectual Property Office,04/01/2017,Supporting UK Business,Innovation Directorate,Forresters clear direction,KBO/5726290,2600.00,Not Applicable,
Department for Business Energy and Industrial Strategy,Intellectual Property Office,04/01/2017,Supporting UK Business,Innovation Directorate,MBM Commercial LLP,10-12737,2600.00,Not Applicable,
Department for Business Energy and Industrial Strategy,Intellectual Property Office,17/01/2017,Supporting UK Business,Innovation Directorate,MBM Commercial LLP,10-12870,2600.00,Not Applicable,
Department for Business Energy and Industrial Strategy,Intellectual Property Office,04/01/2017,Supporting UK Business,Innovation Directorate,Ouzman IP Limited,219,2600.00,Not Applicable,
Department for Business Energy and Industrial Strategy,Intellectual Property Office,20/01/2017,Supporting UK Business,Innovation Directorate,Bridle Intellectual Property Limited,133-003,2600.00,Not Applicable,
Department for Business Energy and Industrial Strategy,Intellectual Property Office,17/01/2017,Supporting UK Business,Innovation Directorate,Schlich Ltd,6852,2600.00,Not Applicable,
Department for Business Energy and Industrial Strategy,Intellectual Property Office,04/01/2017,Supporting UK Business,Innovation Directorate,Laudens Ltd,72997,2600.00,Not Applicable,
Department for Business Energy and Industrial Strategy,Intellectual Property Office,20/01/2017,Supporting UK Business,Innovation Directorate,Laudens Ltd,73016,2600.00,Not Applicable,
Department for Business Energy and Industrial Strategy,Intellectual Property Office,10/01/2017,Supporting UK Business,Innovation Directorate,Thursfields Solicitors,C06369/0001,2600.00,Not Applicable,
Department for Business Energy and Industrial Strategy,Intellectual Property Office,17/01/2017,Supporting UK Business,Innovation Directorate,IP-Active.com Limited,1977,2600.00,Not Applicable,
Department for Business Energy and Industrial Strategy,Intellectual Property Office,19/01/2017,Supporting UK Business,Innovation Directorate,Burrows Chambers Associates,P16129GB00-1456,2600.00,Not Applicable,
Department for Business Energy and Industrial Strategy,Intellectual Property Office,27/01/2017,Supporting UK Business,Innovation Directorate,insignia IP Services Ltd,1081,2600.00,Not Applicable,
Department for Business Energy and Industrial Strategy,Intellectual Property Office,27/01/2017,Supporting UK Business,Innovation Directorate,CLARKE WILMOTT LLP,741704,2600.00,Not Applicable,
Department for Business Energy and Industrial Strategy,Intellectual Property Office,09/01/2017,Information Technology,IT Directorate,Capita Business Services  Ltd,LO10168627,2639.23,Not Applicable,
Department for Business Energy and Industrial Strategy,Intellectual Property Office,04/01/2017,Pay Costs,Copyright & Enforcement Direct,Police & Crime Commissioner Sussex,1800039062,2687.30,Not Applicable,
Department for Business Energy and Industrial Strategy,Intellectual Property Office,25/01/2017,Pay Costs,Copyright & Enforcement Direct,Police & Crime Commissioner Sussex,1800039231,2687.30,Not Applicable,
Department for Business Energy and Industrial Strategy,Intellectual Property Office,04/01/2017,Office Machinery,People Places & Services Direc,Xerox (UK) Ltd,1606401922,2712.66,Not Applicable,
Department for Business Energy and Industrial Strategy,Intellectual Property Office,10/01/2017,Office Supplies,Finance Directorate,Antalis,6471997,2721.74,Not Applicable,
Department for Business Energy and Industrial Strategy,Intellectual Property Office,12/01/2017,Information Technology,Projects,Specialist Computer Centres Plc,OP-M181973A,2724.84,Not Applicable,
Department for Business Energy and Industrial Strategy,Intellectual Property Office,13/01/2017,Information Technology,IT Directorate,Capita Business Services  Ltd,LO10170827,2739.92,Not Applicable,
Department for Business Energy and Industrial Strategy,Intellectual Property Office,13/01/2017,Information Technology,IT Directorate,Capita Business Services  Ltd,LO10170827,2739.92,Not Applicable,
Department for Business Energy and Industrial Strategy,Intellectual Property Office,23/01/2017,Staff Costs,People Places & Services Direc,TMS Development International Ltd,12882,2866.20,Not Applicable,
Department for Business Energy and Industrial Strategy,Intellectual Property Office,25/01/2017,Telecoms,IT Directorate,British  Telecom,Q02043,3000.00,Not Applicable,
Department for Business Energy and Industrial Strategy,Intellectual Property Office,05/01/2017,Staff Costs,People Places & Services Direc,KPMG LLP (CSL),CL1285,3000.00,Not Applicable,
Department for Business Energy and Industrial Strategy,Intellectual Property Office,05/01/2017,Staff Costs,People Places & Services Direc,KPMG LLP (CSL),CL1296,3000.00,Not Applicable,
Department for Business Energy and Industrial Strategy,Intellectual Property Office,16/01/2017,Telecoms,IT Directorate,British  Telecom,GP00002104M0419K,3056.23,Not Applicable,
Department for Business Energy and Industrial Strategy,Intellectual Property Office,13/01/2017,Miscellaneous Expenses General,Projects,Robin Jacob,UPC PANEL FEB17,3090.73,Not Applicable,
Department for Business Energy and Industrial Strategy,Intellectual Property Office,16/01/2017,Postage & Delivery Costs,People Places & Services Direc,CitySprint (UK) Ltd,1988998,3099.53,Not Applicable,
Department for Business Energy and Industrial Strategy,Intellectual Property Office,04/01/2017,Information Technology,IT Directorate,LA International Computer Consultants Lt,LA413395,3146.88,Not Applicable,
Department for Business Energy and Industrial Strategy,Intellectual Property Office,30/01/2017,Information Technology,IT Directorate,Capita Business Services  Ltd,LO10173625,3212.16,Not Applicable,
Department for Business Energy and Industrial Strategy,Intellectual Property Office,20/01/2017,Staff Costs,People Places & Services Direc,Sodexo Motivation Solutions UK Ltd,3273257,3222.96,Not Applicable,
Department for Business Energy and Industrial Strategy,Intellectual Property Office,26/01/2017,Miscellaneous Expenses General,Patent Directorate,British Standards Institution,94664854/1000,3236.40,Not Applicable,
Department for Business Energy and Industrial Strategy,Intellectual Property Office,16/01/2017,Staff Costs,Patent Directorate,Cardiff University,1154631,3250.00,Not Applicable,
Department for Business Energy and Industrial Strategy,Intellectual Property Office,30/01/2017,Information Technology,IT Directorate,Capita Business Services  Ltd,LO10173625,3280.01,Not Applicable,
Department for Business Energy and Industrial Strategy,Intellectual Property Office,06/01/2017,Telecoms,IT Directorate,VODAFONE LIMITED,UK10-012017-4354,3322.08,Not Applicable,
Department for Business Energy and Industrial Strategy,Intellectual Property Office,24/01/2017,Information Technology,IT Directorate,Capita Business Services  Ltd,LO10171744,3331.49,Not Applicable,
Department for Business Energy and Industrial Strategy,Intellectual Property Office,04/01/2017,Accommodation,People Places & Services Direc,ENGIE Services Limited,1800016608,3360.00,Not Applicable,
Department for Business Energy and Industrial Strategy,Intellectual Property Office,11/01/2017,Miscellaneous Expenses General,Projects,Anthony Collins Solicitors LLP,274453,3424.01,Not Applicable,
Department for Business Energy and Industrial Strategy,Intellectual Property Office,13/01/2017,Information Technology,IT Directorate,Capita Business Services  Ltd,LO10170827,3428.21,Not Applicable,
Department for Business Energy and Industrial Strategy,Intellectual Property Office,24/01/2017,Staff Costs,IT Directorate,THE WHOLE PARTNERSHIP LLP,308.OP.COL.J NIC,3540.00,Not Applicable,
Department for Business Energy and Industrial Strategy,Intellectual Property Office,24/01/2017,Office Machinery,Patent Directorate,Xerox Finance,97100355,3543.70,Not Applicable,
Department for Business Energy and Industrial Strategy,Intellectual Property Office,12/01/2017,Information Technology,IT Directorate,Specialist Computer Centres Plc,OP-M170320A,3586.27,Not Applicable,
Department for Business Energy and Industrial Strategy,Intellectual Property Office,12/01/2017,Information Technology,IT Directorate,Specialist Computer Centres Plc,OP-M184497A,3630.90,Not Applicable,
Department for Business Energy and Industrial Strategy,Intellectual Property Office,26/01/2017,Telecoms,IT Directorate,Vodafone Corporate Ltd,82874044,3689.53,Not Applicable,
Department for Business Energy and Industrial Strategy,Intellectual Property Office,05/01/2017,Telecoms,IT Directorate,Vodafone Corporate Ltd,82526084,3889.64,Not Applicable,
Department for Business Energy and Industrial Strategy,Intellectual Property Office,24/01/2017,Pay Costs,People Places & Services Direc,Office for National Statistics,2031004,3976.00,Not Applicable,
Department for Business Energy and Industrial Strategy,Intellectual Property Office,11/01/2017,Miscellaneous Expenses General,Projects,Anthony Collins Solicitors LLP,275605,3979.36,Not Applicable,
Department for Business Energy and Industrial Strategy,Intellectual Property Office,18/01/2017,Information Technology,IT Directorate,Loadbalancer.org Limited,2722,3992.00,Not Applicable,
Department for Business Energy and Industrial Strategy,Intellectual Property Office,04/01/2017,Information Technology,People Places & Services Direc,CDW Limited,PSINV01791930,4083.08,Not Applicable,
Department for Business Energy and Industrial Strategy,Intellectual Property Office,10/01/2017,Office Supplies,Trade Mark Directorate,Oxford University Press,XI10566479,4192.80,Not Applicable,
Department for Business Energy and Industrial Strategy,Intellectual Property Office,16/01/2017,Staff Costs,IT Directorate,Assist Knowledge Development Ltd,1701122,4236.00,Not Applicable,
Department for Business Energy and Industrial Strategy,Intellectual Property Office,09/01/2017,Information Technology,IT Directorate,Capita Business Services  Ltd,LO10168627,4244.01,Not Applicable,
Department for Business Energy and Industrial Strategy,Intellectual Property Office,12/01/2017,Information Technology,IT Directorate,Specialist Computer Centres Plc,OP-M173589A,4255.44,Not Applicable,
Department for Business Energy and Industrial Strategy,Intellectual Property Office,13/01/2017,Office Machinery,People Places & Services Direc,Xerox (UK) Ltd,900154246,4255.48,Not Applicable,
Department for Business Energy and Industrial Strategy,Intellectual Property Office,12/01/2017,Information Technology,People Places & Services Direc,Specialist Computer Centres Plc,OP-M225123A,4260.34,Not Applicable,
Department for Business Energy and Industrial Strategy,Intellectual Property Office,18/01/2017,Staff Costs,IT Directorate,British Standards Institution,94679508-1000,4410.00,Not Applicable,
Department for Business Energy and Industrial Strategy,Intellectual Property Office,09/01/2017,Information Technology,Patent Directorate,Thomson Reuters (Professional) Ltd,835313625,4455.93,Not Applicable,
Department for Business Energy and Industrial Strategy,Intellectual Property Office,20/01/2017,Legal & Hearings,Patent Directorate,Government Legal Department,436562,4486.49,Not Applicable,
Department for Business Energy and Industrial Strategy,Intellectual Property Office,04/01/2017,Office Machinery,People Places & Services Direc,Xerox (UK) Ltd,1606401921,4491.11,Not Applicable,
Department for Business Energy and Industrial Strategy,Intellectual Property Office,12/01/2017,Information Technology,IT Directorate,Specialist Computer Centres Plc,OP-M210051A,4550.16,Not Applicable,
Department for Business Energy and Industrial Strategy,Intellectual Property Office,06/01/2017,Miscellaneous Expenses General,Projects,Austin-Smith:Lord LLP,139,4656.00,Not Applicable,
Department for Business Energy and Industrial Strategy,Intellectual Property Office,10/01/2017,Staff Costs,People Places & Services Direc,DBL Europe Ltd,111,4680.00,Not Applicable,
Department for Business Energy and Industrial Strategy,Intellectual Property Office,16/01/2017,Information Technology,IT Directorate,CDW Limited,PSINV01799023,4859.14,Not Applicable,
Department for Business Energy and Industrial Strategy,Intellectual Property Office,10/01/2017,Land & Buildings Gross,Balance Sheet,Clarity,TR0045,4915.38,Not Applicable,
Department for Business Energy and Industrial Strategy,Intellectual Property Office,09/01/2017,Miscellaneous Expenses General,IT Directorate,Verisign,520004470,4917.85,Not Applicable,
Department for Business Energy and Industrial Strategy,Intellectual Property Office,10/01/2017,Telecoms,IT Directorate,ZEN INTERNET LIMITED,22030382,4957.80,Not Applicable,
Department for Business Energy and Industrial Strategy,Intellectual Property Office,05/01/2017,Information Technology,Patent Directorate,IOP Publishing Ltd,8070815,4980.98,Not Applicable,
Department for Business Energy and Industrial Strategy,Intellectual Property Office,09/01/2017,Information Technology,IT Directorate,LA International Computer Consultants Lt,LA413636,5035.01,Not Applicable,
Department for Business Energy and Industrial Strategy,Intellectual Property Office,24/01/2017,Information Technology,IT Directorate,Capita Business Services  Ltd,LO10171744,5187.26,Not Applicable,
Department for Business Energy and Industrial Strategy,Intellectual Property Office,17/01/2017,Supporting UK Business,International Policy Directora,FOREIGN & COMMONWEALTH OFFICE,1092802,5767.07,Not Applicable,
Department for Business Energy and Industrial Strategy,Intellectual Property Office,04/01/2017,Staff Costs,Innovation Directorate,University of East Anglia,1176456,6000.00,Not Applicable,
Department for Business Energy and Industrial Strategy,Intellectual Property Office,04/01/2017,Staff Costs,People Places & Services Direc,The Disruptive HR Agency Ltd,INV-0052,6000.00,Not Applicable,
Department for Business Energy and Industrial Strategy,Intellectual Property Office,23/01/2017,Telecoms,IT Directorate,EE Ltd,1252215364,6062.70,Not Applicable,
Department for Business Energy and Industrial Strategy,Intellectual Property Office,12/01/2017,Information Technology,IT Directorate,Specialist Computer Centres Plc,OP-M219995A,6431.66,Not Applicable,
Department for Business Energy and Industrial Strategy,Intellectual Property Office,27/01/2017,Information Technology,Projects,Micro Focus Ltd,97076009,6678.00,Not Applicable,
Department for Business Energy and Industrial Strategy,Intellectual Property Office,23/01/2017,Legal & Hearings,Trade Mark Directorate,Government Legal Department,436654,7069.76,Not Applicable,
Department for Business Energy and Industrial Strategy,Intellectual Property Office,26/01/2017,Information Technology,People Places & Services Direc,Reed Business Information,DSINV00126518,7194.00,Not Applicable,
Department for Business Energy and Industrial Strategy,Intellectual Property Office,09/01/2017,Accommodation,People Places & Services Direc,Department For Business Innovation & Ski,6.1511E+11,7208.31,Not Applicable,
Department for Business Energy and Industrial Strategy,Intellectual Property Office,10/01/2017,Stock,Balance Sheet,King & Wood Mallesons,D03075,7408.41,Not Applicable,
Department for Business Energy and Industrial Strategy,Intellectual Property Office,09/01/2017,Accommodation,People Places & Services Direc,Department For Business Innovation & Ski,6.1511E+11,7461.94,Not Applicable,
Department for Business Energy and Industrial Strategy,Intellectual Property Office,05/01/2017,Telecoms,IT Directorate,EE Ltd,1250456702,7469.67,Not Applicable,
Department for Business Energy and Industrial Strategy,Intellectual Property Office,23/01/2017,Information Technology,IT Directorate,Softcat Ltd,INV01526556,7470.67,Not Applicable,
Department for Business Energy and Industrial Strategy,Intellectual Property Office,04/01/2017,Office Machinery,People Places & Services Direc,Xerox (UK) Ltd,1606401920,7489.80,Not Applicable,
Department for Business Energy and Industrial Strategy,Intellectual Property Office,27/01/2017,Miscellaneous Expenses General,Projects,Anthony Collins Solicitors LLP,276320,7500.00,Not Applicable,
Department for Business Energy and Industrial Strategy,Intellectual Property Office,09/01/2017,Office Machinery,People Places & Services Direc,Konica Minolta Business Solutions (UK),1128004424,7643.99,Not Applicable,
Department for Business Energy and Industrial Strategy,Intellectual Property Office,20/01/2017,Telecoms,IT Directorate,British  Telecom,VP022390170M1810,7909.78,Not Applicable,
Department for Business Energy and Industrial Strategy,Intellectual Property Office,06/01/2017,Staff Costs,People Places & Services Direc,Sodexo Motivation Solutions UK Ltd,3269076,7966.78,Not Applicable,
Department for Business Energy and Industrial Strategy,Intellectual Property Office,18/01/2017,Information Technology,Innovation Directorate,Web Usability Partnership Ltd,1651,8370.00,Not Applicable,
Department for Business Energy and Industrial Strategy,Intellectual Property Office,20/01/2017,Staff Costs,People Places & Services Direc,Sodexo Motivation Solutions UK Ltd,3273466,8483.57,Not Applicable,
Department for Business Energy and Industrial Strategy,Intellectual Property Office,09/01/2017,Information Technology,IT Directorate,Capita Business Services  Ltd,LO10168627,8519.74,Not Applicable,
Department for Business Energy and Industrial Strategy,Intellectual Property Office,05/01/2017,Information Technology,Projects,FIRSTLIOT LTD,45,8580.00,Not Applicable,
Department for Business Energy and Industrial Strategy,Intellectual Property Office,30/01/2017,Staff Costs,People Places & Services Direc,Sodexo Motivation Solutions UK Ltd,3278814,8907.45,Not Applicable,
Department for Business Energy and Industrial Strategy,Intellectual Property Office,04/01/2017,Information Technology,Projects,SANDHILL CONSULTANTS LTD,IN4058854,8970.00,Not Applicable,
Department for Business Energy and Industrial Strategy,Intellectual Property Office,30/01/2017,Information Technology,IT Directorate,SOFTWARE BOX LTD,INV87325,9244.80,Not Applicable,
Department for Business Energy and Industrial Strategy,Intellectual Property Office,09/01/2017,Accommodation,People Places & Services Direc,Department For Business Innovation & Ski,6.1511E+11,9498.75,Not Applicable,
Department for Business Energy and Industrial Strategy,Intellectual Property Office,23/01/2017,Legal & Hearings,Trade Mark Directorate,Government Legal Department,436843,9975.00,Not Applicable,
Department for Business Energy and Industrial Strategy,Intellectual Property Office,05/01/2017,Miscellaneous Expenses General,Patent Directorate,Ministry of Justice (MoJ),10-RL110-325,10000.00,Not Applicable,
Department for Business Energy and Industrial Strategy,Intellectual Property Office,06/01/2017,Postage & Delivery Costs,People Places & Services Direc,Neopost Finance Ltd,NE9000335-05JAN,10000.00,Not Applicable,
Department for Business Energy and Industrial Strategy,Intellectual Property Office,24/01/2017,Information Technology,IT Directorate,Capita Business Services  Ltd,LO10171744,10254.37,Not Applicable,
Department for Business Energy and Industrial Strategy,Intellectual Property Office,24/01/2017,Accommodation,People Places & Services Direc,Pro Investments Limited,98487,11013.46,Not Applicable,
Department for Business Energy and Industrial Strategy,Intellectual Property Office,10/01/2017,Staff Costs,People Places & Services Direc,DBL Europe Ltd,112,11040.00,Not Applicable,
Department for Business Energy and Industrial Strategy,Intellectual Property Office,24/01/2017,Staff Costs,IT Directorate,QA Ltd,ISL138816,11400.00,Not Applicable,
Department for Business Energy and Industrial Strategy,Intellectual Property Office,24/01/2017,Staff Costs,IT Directorate,QA Ltd,ISL138817,11400.00,Not Applicable,
Department for Business Energy and Industrial Strategy,Intellectual Property Office,24/01/2017,Staff Costs,IT Directorate,QA Ltd,ISL138844,11400.00,Not Applicable,
Department for Business Energy and Industrial Strategy,Intellectual Property Office,03/01/2017,Staff Costs,People Places & Services Direc,Sodexo Motivation Solutions UK Ltd,3265870,11668.09,Not Applicable,
Department for Business Energy and Industrial Strategy,Intellectual Property Office,17/01/2017,Staff Costs,IT Directorate,Coaching For Change Ltd,2847295,11998.80,Not Applicable,
Department for Business Energy and Industrial Strategy,Intellectual Property Office,24/01/2017,Land & Buildings Gross,Balance Sheet,Clarity,TR0047,12092.66,Not Applicable,
Department for Business Energy and Industrial Strategy,Intellectual Property Office,17/01/2017,Land & Buildings Gross,Balance Sheet,Clarity,TR0046,12241.51,Not Applicable,
Department for Business Energy and Industrial Strategy,Intellectual Property Office,06/01/2017,Pay Costs,Finance Directorate,Companies House,S0001797564,12705.00,Not Applicable,
Department for Business Energy and Industrial Strategy,Intellectual Property Office,06/01/2017,Telecoms,IT Directorate,VODAFONE LIMITED,UK10-012017-6918,12811.12,Not Applicable,
Department for Business Energy and Industrial Strategy,Intellectual Property Office,13/01/2017,Information Technology,IT Directorate,Capita Business Services  Ltd,LO10170827,13159.29,Not Applicable,
Department for Business Energy and Industrial Strategy,Intellectual Property Office,09/01/2017,Information Technology,Patent Directorate,STN,9340305601,13207.76,Not Applicable,
Department for Business Energy and Industrial Strategy,Intellectual Property Office,09/01/2017,Information Technology,Projects,MS MODERNISATION LTD,104160101,13356.00,Not Applicable,
Department for Business Energy and Industrial Strategy,Intellectual Property Office,27/01/2017,Information Technology,IT Directorate,HORNBILL SERVICE MANAGEMENT LIMITED,INV12939,14603.40,Not Applicable,
Department for Business Energy and Industrial Strategy,Intellectual Property Office,05/01/2017,Information Technology,People Places & Services Direc,Insight Direct (UK) Ltd,3193537,14898.00,Not Applicable,
Department for Business Energy and Industrial Strategy,Intellectual Property Office,04/01/2017,Information Technology,IT Directorate,Equal Experts UK Limited,INV-2187,15000.00,Not Applicable,
Department for Business Energy and Industrial Strategy,Intellectual Property Office,13/01/2017,Information Technology,IT Directorate,Capita Business Services  Ltd,LO10170827,15116.13,Not Applicable,
Department for Business Energy and Industrial Strategy,Intellectual Property Office,30/01/2017,Information Technology,IT Directorate,Capita Business Services  Ltd,LO10173625,15274.06,Not Applicable,
Department for Business Energy and Industrial Strategy,Intellectual Property Office,19/01/2017,Information Technology,Projects,MS MODERNISATION LTD,104160106,15435.64,Not Applicable,
Department for Business Energy and Industrial Strategy,Intellectual Property Office,24/01/2017,Information Technology,IT Directorate,Capita Business Services  Ltd,LO10171744,17153.28,Not Applicable,
Department for Business Energy and Industrial Strategy,Intellectual Property Office,05/01/2017,Information Technology,IT Directorate,Trustmarque Solutions Ltd,2253331,17416.00,Not Applicable,
Department for Business Energy and Industrial Strategy,Intellectual Property Office,09/01/2017,Miscellaneous Expenses General,Innovation Directorate,OECD,161196-GOV-2016-,17660.86,Not Applicable,
Department for Business Energy and Industrial Strategy,Intellectual Property Office,09/01/2017,Information Technology,Patent Directorate,Springer Customer Service Centre GmbH,2933160751,17953.36,Not Applicable,
Department for Business Energy and Industrial Strategy,Intellectual Property Office,09/01/2017,Accommodation,People Places & Services Direc,Senator International Ltd,S01354671,18067.68,Not Applicable,
Department for Business Energy and Industrial Strategy,Intellectual Property Office,30/01/2017,Information Technology,IT Directorate,Capita Business Services  Ltd,LO10173625,18264.80,Not Applicable,
Department for Business Energy and Industrial Strategy,Intellectual Property Office,09/01/2017,Accommodation,People Places & Services Direc,Department For Business Innovation & Ski,6.1511E+11,19249.60,Not Applicable,
Department for Business Energy and Industrial Strategy,Intellectual Property Office,25/01/2017,Information Technology,Projects,Pirean Ltd,2800,19278.00,Not Applicable,
Department for Business Energy and Industrial Strategy,Intellectual Property Office,05/01/2017,Telecoms,IT Directorate,CDW Limited,PSINV01793103,19384.27,Not Applicable,
Department for Business Energy and Industrial Strategy,Intellectual Property Office,23/01/2017,Accommodation,People Places & Services Direc,Department For Business Innovation & Ski,6.1511E+11,20468.45,Not Applicable,
Department for Business Energy and Industrial Strategy,Intellectual Property Office,05/01/2017,Supporting UK Business,International Policy Directora,FOREIGN & COMMONWEALTH OFFICE,1092449,20629.90,Not Applicable,
Department for Business Energy and Industrial Strategy,Intellectual Property Office,10/01/2017,Supporting UK Business,International Policy Directora,FOREIGN & COMMONWEALTH OFFICE,1092667,20728.10,Not Applicable,
Department for Business Energy and Industrial Strategy,Intellectual Property Office,23/01/2017,Accommodation,People Places & Services Direc,Department For Business Innovation & Ski,6.1511E+11,22643.74,Not Applicable,
Department for Business Energy and Industrial Strategy,Intellectual Property Office,09/01/2017,Accommodation,People Places & Services Direc,Department For Business Innovation & Ski,6.1511E+11,24894.09,Not Applicable,
Department for Business Energy and Industrial Strategy,Intellectual Property Office,16/01/2017,Accommodation,People Places & Services Direc,EDF ENERGY,2427765,30672.70,Not Applicable,
Department for Business Energy and Industrial Strategy,Intellectual Property Office,04/01/2017,Accommodation,People Places & Services Direc,D&M Mechanical Engineers Ltd,2807,36000.00,Not Applicable,
Department for Business Energy and Industrial Strategy,Intellectual Property Office,30/01/2017,Land & Buildings Gross,Balance Sheet,Barclaycard Commercial,GPR-27JAN17,36106.03,Not Applicable,
Department for Business Energy and Industrial Strategy,Intellectual Property Office,24/01/2017,Supporting UK Business,International Policy Directora,FOREIGN & COMMONWEALTH OFFICE,1092945,37761.47,Not Applicable,
Department for Business Energy and Industrial Strategy,Intellectual Property Office,30/01/2017,Information Technology,IT Directorate,Open Text AG,SUK08157709,38473.15,Not Applicable,
Department for Business Energy and Industrial Strategy,Intellectual Property Office,25/01/2017,Accommodation,People Places & Services Direc,D&M Mechanical Engineers Ltd,2828,42000.00,Not Applicable,
Department for Business Energy and Industrial Strategy,Intellectual Property Office,16/01/2017,Information Technology,IT Directorate,SOFTWARE BOX LTD,INV87100,50221.68,Not Applicable,
Department for Business Energy and Industrial Strategy,Intellectual Property Office,12/01/2017,Information Technology,IT Directorate,Fujitsu Services Ltd,238261,86666.40,Not Applicable,
Department for Business Energy and Industrial Strategy,Intellectual Property Office,23/01/2017,Information Technology,Patent Directorate,European Patent Office,40265387,104978.92,Not Applicable,
Department for Business Energy and Industrial Strategy,Intellectual Property Office,23/01/2017,Information Technology,Projects,MS MODERNISATION LTD,104160107,120120.00,Not Applicable,
Department for Business Energy and Industrial Strategy,Intellectual Property Office,09/01/2017,Information Technology,Patent Directorate,NetResult Solutions Ltd,835324218,146908.50,Not Applicable,
Department for Business Energy and Industrial Strategy,Intellectual Property Office,06/01/2017,Legal & Hearings,Finance Directorate,Department For Business Innovation & Ski,6.1511E+11,166250.00,Not Applicable,
Department for Business Energy and Industrial Strategy,Intellectual Property Office,23/01/2017,Information Technology,IT Directorate,Softcat Ltd,INV01526556,185122.85,Not Applicable,
Department for Business Energy and Industrial Strategy,Intellectual Property Office,04/01/2017,Accommodation,People Places & Services Direc,London Borough of Tower Hamlets,65958270-MAR17,315370.00,Not Applicable,
Department for Business Energy and Industrial Strategy,Intellectual Property Office,09/01/2017,International Payments,International Policy Directora,WIPO,CNTRW00002748,913586.24,Not Applicable,
Department for Business Energy and Industrial Strategy,Intellectual Property Office,09/01/2017,Entertainment,IT Directorate,Tesco Store 2931,H57720170111dqnjjweew,5.58,Not Applicable,
Department for Business Energy and Industrial Strategy,Intellectual Property Office,17/01/2017,Perpetual Licences,IT Directorate,Paypal,H57720170119jgitrnsut,105.98,Not Applicable,
Department for Business Energy and Industrial Strategy,Intellectual Property Office,17/01/2017,Perpetual Licences,IT Directorate,Www.Ja.Net,H57720170119dubsjvsuf,48.00,Not Applicable,
Department for Business Energy and Industrial Strategy,Intellectual Property Office,04/01/2017,Perpetual Licences,IT Directorate,Digicert Inc,H57720170106mywqstqrx,901.58,Not Applicable,
Department for Business Energy and Industrial Strategy,Intellectual Property Office,17/01/2017,Fixed Telecoms Equipment,IT Directorate,Rentals From 02,H57720170119lzlsabogk,-43.36,Not Applicable,
Department for Business Energy and Industrial Strategy,Intellectual Property Office,09/01/2017,Fixed Telecoms Equipment,IT Directorate,Rentals From 02,H57720170111rxskelvxt,1678.72,Not Applicable,
Department for Business Energy and Industrial Strategy,Intellectual Property Office,04/01/2017,Perpetual Licences,IT Directorate,Digicert Inc,H57720170106hgcybqsfe,530.83,Not Applicable,
Department for Business Energy and Industrial Strategy,Intellectual Property Office,13/01/2017,Career Development Services,IT Directorate,Puppetlabs,H57720170117mcfwaqiad,1444.00,Not Applicable,
Department for Business Energy and Industrial Strategy,Intellectual Property Office,13/01/2017,Career Development Services,IT Directorate,Puppetlabs,H57720170117xudurcole,1834.73,Not Applicable,
Department for Business Energy and Industrial Strategy,Intellectual Property Office,11/01/2017,Career Development Services,IT Directorate,Puppetlabs,H57720170113srjlmiooe,1847.38,Not Applicable,
Department for Business Energy and Industrial Strategy,Intellectual Property Office,04/01/2017,Career Development Services,IT Directorate,Www.Nobleprog.Co.Uk,H57720170106pfrrisdoc,2450.00,Not Applicable,
Department for Business Energy and Industrial Strategy,Intellectual Property Office,04/01/2017,Career Development Services,IT Directorate,Www.Nobleprog.Co.Uk,H57720170106qbyxcgzvn,2150.00,Not Applicable,
Department for Business Energy and Industrial Strategy,Intellectual Property Office,12/01/2017,Perpetual Licences,IT Directorate,Clicdata,H57720170114uimefeght,25.42,Not Applicable,
Department for Business Energy and Industrial Strategy,Intellectual Property Office,26/01/2017,Network and infrastructure H/W,IT Directorate,Ebuyer (UK) Ltd,H57720170131ofccqxblj,265.51,Not Applicable,
Department for Business Energy and Industrial Strategy,Intellectual Property Office,27/01/2017,Network and infrastructure H/W,IT Directorate,Amazon UK Marketplace,H57720170131qstegropq,92.97,Not Applicable,
Department for Business Energy and Industrial Strategy,Intellectual Property Office,26/01/2017,Network and infrastructure H/W,IT Directorate,Amazon UK Retail,H57720170128lilmctqme,184.95,Not Applicable,
Department for Business Energy and Industrial Strategy,Intellectual Property Office,25/01/2017,Network and infrastructure H/W,IT Directorate,Amazon UK Retail,H57720170127otlbmvqym,399.90,Not Applicable,
Department for Business Energy and Industrial Strategy,Intellectual Property Office,19/01/2017,Network and infrastructure H/W,IT Directorate,Amazon UK Marketplace,H57720170121ufhrpisna,10.50,Not Applicable,
Department for Business Energy and Industrial Strategy,Intellectual Property Office,19/01/2017,Network and infrastructure H/W,IT Directorate,Paypal,H57720170121hllzwtvei,25.21,Not Applicable,
Department for Business Energy and Industrial Strategy,Intellectual Property Office,18/01/2017,Network and infrastructure H/W,IT Directorate,Bt Shop,H57720170120rxkrzfhti,730.96,Not Applicable,
Department for Business Energy and Industrial Strategy,Intellectual Property Office,17/01/2017,Network and infrastructure H/W,IT Directorate,Amazon UK Marketplace,H57720170119pyoothqzj,479.88,Not Applicable,
Department for Business Energy and Industrial Strategy,Intellectual Property Office,16/01/2017,Network and infrastructure H/W,IT Directorate,Amazon UK Retail Amazon.C,H57720170118dfcctdhpr,32.40,Not Applicable,
Department for Business Energy and Industrial Strategy,Intellectual Property Office,12/01/2017,Network and infrastructure H/W,IT Directorate,Amazon UK Marketplace,H57720170114hlowpmlsm,539.65,Not Applicable,
Department for Business Energy and Industrial Strategy,Intellectual Property Office,10/01/2017,Network and infrastructure H/W,IT Directorate,Bt Shop,H57720170113dykmsisrq,610.20,Not Applicable,
Department for Business Energy and Industrial Strategy,Intellectual Property Office,11/01/2017,Network and infrastructure H/W,IT Directorate,Amazon UK Marketplace,H57720170113kvqjdbvzl,71.90,Not Applicable,
Department for Business Energy and Industrial Strategy,Intellectual Property Office,10/01/2017,Network and infrastructure H/W,IT Directorate,Amazon UK Retail,H57720170112ywxphrkns,371.30,Not Applicable,
Department for Business Energy and Industrial Strategy,Intellectual Property Office,07/01/2017,Network and infrastructure H/W,IT Directorate,Amazon UK Marketplace,H57720170110ngyjlidux,35.95,Not Applicable,
Department for Business Energy and Industrial Strategy,Intellectual Property Office,04/01/2017,Perpetual Licences,IT Directorate,Websitepulse.Com,H57720170107dkwvggcin,79.89,Not Applicable,
Department for Business Energy and Industrial Strategy,Intellectual Property Office,13/01/2017,Network and infrastructure H/W,IT Directorate,Amazon UK Marketplace,H57720170117bnnrgdfur,192.15,Not Applicable,
Department for Business Energy and Industrial Strategy,Intellectual Property Office,25/01/2017,Career Development Services,IT Directorate,Vue Itcertificationvue,H57720170127sytntlwqt,135.60,Not Applicable,
Department for Business Energy and Industrial Strategy,Intellectual Property Office,18/01/2017,Network and infrastructure H/W,IT Directorate,South Wales Suppliers,H57720170120hkfcbsvsj,304.80,Not Applicable,
Department for Business Energy and Industrial Strategy,Intellectual Property Office,19/01/2017,Software Maintenance,IT Directorate,Comms Exp,H57720170121uxkfdsmkf,45.60,Not Applicable,
Department for Business Energy and Industrial Strategy,Intellectual Property Office,10/01/2017,Entertainment,People Places & Serv Direct,Marksandspencer.Co,H57720170112srunqcqrq,68.89,Not Applicable,
Department for Business Energy and Industrial Strategy,Intellectual Property Office,26/01/2017,Books,Innovation Directorate,Times Newspapers Ltd,H57720170131owbanmgva,26.00,Not Applicable,
Department for Business Energy and Industrial Strategy,Intellectual Property Office,03/01/2017,Books,Innovation Directorate,Haymarket Subscription,H57720170105glwdkbuwz,227.70,Not Applicable,
Department for Business Energy and Industrial Strategy,Intellectual Property Office,10/01/2017,Books,Innovation Directorate,Economist Subscription,H57720170112evuestbxm,145.00,Not Applicable,
Department for Business Energy and Industrial Strategy,Intellectual Property Office,09/01/2017,Books,Innovation Directorate,Economist Subscription,H57720170111wincphsjn,145.00,Not Applicable,
Department for Business Energy and Industrial Strategy,Intellectual Property Office,29/01/2017,Advertising Distribution,Innovation Directorate,Soundcloud,H57720170131bbzumkvww,75.00,Not Applicable,
Department for Business Energy and Industrial Strategy,Intellectual Property Office,25/01/2017,Advertising Distribution,Innovation Directorate,Full Circle Events & E,H57720170127kadtdjkwv,152.52,Not Applicable,
Department for Business Energy and Industrial Strategy,Intellectual Property Office,13/01/2017,Advertising Distribution,Innovation Directorate,Ges Limited,H57720170117fwgxgqvis,481.65,Not Applicable,
Department for Business Energy and Industrial Strategy,Intellectual Property Office,07/01/2017,Advertising Distribution,Innovation Directorate,Twitonomy.Com,H57720170110tbrfeprwl,15.96,Not Applicable,
Department for Business Energy and Industrial Strategy,Intellectual Property Office,31/12/2016,Advertising Distribution,Innovation Directorate,Facebk Ddfaebe4r2,H57720170103jwlqfesrv,5.74,Not Applicable,
Department for Business Energy and Industrial Strategy,Intellectual Property Office,19/01/2017,Advertising Distribution,Innovation Directorate,Blitz Communications L,H57720170121euvwczsxs,258.00,Not Applicable,
Department for Business Energy and Industrial Strategy,Intellectual Property Office,26/01/2017,Advertising Distribution,Innovation Directorate,Campaignmonitor.Co,H57720170127rvwvfsrxs,77.32,Not Applicable,
Department for Business Energy and Industrial Strategy,Intellectual Property Office,26/01/2017,Entertainment,Copyright and Enforcement Directorate,Marksandspencer.Co,H57720170128ktiglwqej,88.19,Not Applicable,
Department for Business Energy and Industrial Strategy,Intellectual Property Office,25/01/2017,Entertainment,Copyright and Enforcement Directorate,Marksandspencer.Co,H57720170127vxipdkzbf,82.19,Not Applicable,
Department for Business Energy and Industrial Strategy,Intellectual Property Office,08/01/2017,Books,Copyright and Enforcement Directorate,Amazon UK Retail,H57720170110cmhvvsugm,64.52,Not Applicable,
Department for Business Energy and Industrial Strategy,Intellectual Property Office,13/01/2017,Career Development Services,Finance Directorate,Www.Cips.Org,H57720170117yevjjhjur,46.51,Not Applicable,
Department for Business Energy and Industrial Strategy,Intellectual Property Office,25/01/2017,Entertainment,Finance Directorate,Amazon UK Marketplace,H57720170127ztuekbmbr,3.38,Not Applicable,
Department for Business Energy and Industrial Strategy,Intellectual Property Office,25/01/2017,Entertainment,Finance Directorate,Amazon UK Marketplace,H57720170127klgvkutdq,1.79,Not Applicable,
Department for Business Energy and Industrial Strategy,Intellectual Property Office,24/01/2017,Entertainment,Finance Directorate,Amazon UK Marketplace,H57720170126agddtythf,2.90,Not Applicable,
Department for Business Energy and Industrial Strategy,Intellectual Property Office,24/01/2017,Entertainment,Finance Directorate,Amazon UK Marketplace,H57720170126klouboprt,3.98,Not Applicable,
Department for Business Energy and Industrial Strategy,Intellectual Property Office,24/01/2017,Entertainment,Finance Directorate,Amazon UK Marketplace,H57720170126kwnqlwmcu,3.46,Not Applicable,
Department for Business Energy and Industrial Strategy,Intellectual Property Office,24/01/2017,Entertainment,Finance Directorate,Amazon UK Marketplace,H57720170126pujcnmyqk,5.03,Not Applicable,
Department for Business Energy and Industrial Strategy,Intellectual Property Office,23/01/2017,Entertainment,Finance Directorate,Amazon UK Marketplace,H57720170125dipslrllo,2.94,Not Applicable,
Department for Business Energy and Industrial Strategy,Intellectual Property Office,05/01/2017,Office Stationery,Finance Directorate,Xma Ltd,H57720170107zbumhauzp,479.88,Not Applicable,
Department for Business Energy and Industrial Strategy,Intellectual Property Office,03/01/2017,Office Stationery,Finance Directorate,Xma Ltd,H57720170105moixqmwnr,369.17,Not Applicable,
Department for Business Energy and Industrial Strategy,Intellectual Property Office,03/01/2017,Office Stationery,Finance Directorate,Xma Ltd,H57720170105budtgymhu,369.17,Not Applicable,
Department for Business Energy and Industrial Strategy,Intellectual Property Office,05/01/2017,Office Stationery,Finance Directorate,Amazon UK Marketplace,H57720170107lyzcdudag,6.98,Not Applicable,
Department for Business Energy and Industrial Strategy,Intellectual Property Office,20/01/2017,Office Stationery,Finance Directorate,Amazon UK Marketplace,H57720170124dsdtpaxcg,76.00,Not Applicable,
Department for Business Energy and Industrial Strategy,Intellectual Property Office,13/01/2017,Office Stationery,Finance Directorate,Www.Ukpos.Com,H57720170117ytnyqxzxb,157.90,Not Applicable,
Department for Business Energy and Industrial Strategy,Intellectual Property Office,27/01/2017,Entertainment,People Places & Serv Direct,Paypal,H57720170131vbfywyvli,16.99,Not Applicable,
Department for Business Energy and Industrial Strategy,Intellectual Property Office,26/01/2017,Entertainment,People Places & Serv Direct,Amazon UK Marketplace,H57720170128mhvuoqrdf,38.95,Not Applicable,
Department for Business Energy and Industrial Strategy,Intellectual Property Office,25/01/2017,Books,People Places & Serv Direct,Amazon UK Marketplace,H57720170127lepzfpruh,15.98,Not Applicable,
Department for Business Energy and Industrial Strategy,Intellectual Property Office,30/01/2017,Entertainment,People Places & Serv Direct,Tesco-Stores 6459,H57720170201pludhdvcm,10.63,Not Applicable,
Department for Business Energy and Industrial Strategy,Intellectual Property Office,19/01/2017,Career Development Services,People Places & Serv Direct,Eb *rabble Talks Energ,H57720170121kuireuptw,5.00,Not Applicable,
Department for Business Energy and Industrial Strategy,Intellectual Property Office,18/01/2017,Career Development Services,People Places & Serv Direct,Eb *rabble Talks Energ,H57720170120tqjjshiuc,20.00,Not Applicable,
Department for Business Energy and Industrial Strategy,Intellectual Property Office,11/01/2017,Books,People Places & Serv Direct,Amazon UK Retail,H57720170113tsqtthvcw,213.45,Not Applicable,
Department for Business Energy and Industrial Strategy,Intellectual Property Office,10/01/2017,Books,People Places & Serv Direct,Amazon UK Retail Amazon.C,H57720170112lzaikrvrl,173.68,Not Applicable,
Department for Business Energy and Industrial Strategy,Intellectual Property Office,10/01/2017,Books,People Places & Serv Direct,Amazon UK Retail Amazon.C,H57720170112vlbkbgrol,17.19,Not Applicable,
Department for Business Energy and Industrial Strategy,Intellectual Property Office,30/01/2017,Steering Board,People Places & Serv Direct,Sainsburys Superma,H57720170201izbpngvwl,5.3,Not Applicable,
Department for Business Energy and Industrial Strategy,Intellectual Property Office,30/01/2017,Steering Board,People Places & Serv Direct,Marks&spencer Plc Saca,H57720170201urhhhtpml,9.8,Not Applicable,
Department for Business Energy and Industrial Strategy,Intellectual Property Office,30/01/2017,Steering Board,People Places & Serv Direct,W M Morrison Plc,H57720170201wkrmqoxwu,8.35,Not Applicable,
Department for Business Energy and Industrial Strategy,Intellectual Property Office,24/01/2017,Steering Board,People Places & Serv Direct,Marks&spencer Plc,H57720170126jugjkcdik,17.9,Not Applicable,
Department for Business Energy and Industrial Strategy,Intellectual Property Office,23/01/2017,Steering Board,People Places & Serv Direct,W M Morrison Plc,H57720170125mmqnmbyoy,12,Not Applicable,
Department for Business Energy and Industrial Strategy,Intellectual Property Office,23/01/2017,Steering Board,People Places & Serv Direct,Sainsburys Superma,H57720170125wulcdntvi,44.13,Not Applicable,
Department for Business Energy and Industrial Strategy,Intellectual Property Office,28/01/2017,Network and infrastructure H/W,People Places & Serv Direct,Amazon UK Marketplace,H57720170131rogxkuyyo,55.98,Not Applicable,
Department for Business Energy and Industrial Strategy,Intellectual Property Office,29/01/2017,Network and infrastructure H/W,People Places & Serv Direct,Amazon UK Retail,H57720170131fnrhmcfjz,14.98,Not Applicable,
Department for Business Energy and Industrial Strategy,Intellectual Property Office,16/01/2017,Network and infrastructure H/W,People Places & Serv Direct,Currys Online,H57720170118xrftzuvwq,143.98,Not Applicable,
Department for Business Energy and Industrial Strategy,Intellectual Property Office,16/01/2017,Office Stationery,People Places & Serv Direct,Amazon UK Marketplace,H57720170118wiyekowkw,25.99,Not Applicable,
Department for Business Energy and Industrial Strategy,Intellectual Property Office,15/01/2017,Office Stationery,People Places & Serv Direct,Staples,H57720170117jsfruksbf,9,Not Applicable,
Department for Business Energy and Industrial Strategy,Intellectual Property Office,07/01/2017,Office Stationery,People Places & Serv Direct,Amazon UK Retail Amazon.C,H57720170110xjlrlmnxl,41.62,Not Applicable,
Department for Business Energy and Industrial Strategy,Intellectual Property Office,08/01/2017,Office Stationery,People Places & Serv Direct,Amazon UK Retail,H57720170110yperbqxga,41.62,Not Applicable,
Department for Business Energy and Industrial Strategy,Intellectual Property Office,08/01/2017,Office Stationery,People Places & Serv Direct,Amazon UK Retail,H57720170110gvqdukcku,41.62,Not Applicable,
Department for Business Energy and Industrial Strategy,Intellectual Property Office,07/01/2017,Office Stationery,People Places & Serv Direct,Amazon UK Retail,H57720170110inivayvzf,41.62,Not Applicable,
Department for Business Energy and Industrial Strategy,Intellectual Property Office,06/01/2017,Relocation & Removal Service,People Places & Serv Direct,Hillcroft Garage L,H57720170110kjqcfiees,78,Not Applicable,
Department for Business Energy and Industrial Strategy,Intellectual Property Office,08/01/2017,Office Stationery,People Places & Serv Direct,Amazon UK Retail Amazon.C,H57720170110mneidcjrs,41.62,Not Applicable,
Department for Business Energy and Industrial Strategy,Intellectual Property Office,05/01/2017,Office Stationery,People Places & Serv Direct,Boardsdirect.Co.Uk,H57720170107tmrutsase,623.04,Not Applicable,
Department for Business Energy and Industrial Strategy,Intellectual Property Office,05/01/2017,Office Stationery,People Places & Serv Direct,Boardsdirect.Co.Uk,H57720170107oxvlihkin,-365.1,Not Applicable,
Department for Business Energy and Industrial Strategy,Intellectual Property Office,12/01/2017,Office Stationery,People Places & Serv Direct,Www.Staples.Co.Uk,H57720170114rufnltwyt,49.92,Not Applicable,
Department for Business Energy and Industrial Strategy,Intellectual Property Office,11/01/2017,Office Stationery,People Places & Serv Direct,Amazon UK Marketplace,H57720170113xbygcjbtm,12.98,Not Applicable,
Department for Business Energy and Industrial Strategy,Intellectual Property Office,05/01/2017,Office Furniture,People Places & Serv Direct,Currys S/s,H57720170107ggsfdxwjr,199.98,Not Applicable,
Department for Business Energy and Industrial Strategy,Intellectual Property Office,04/01/2017,Office Stationery,People Places & Serv Direct,Ring O Roses,H57720170106ruxrwdwfk,80,Not Applicable,
Department for Business Energy and Industrial Strategy,Intellectual Property Office,26/01/2017,Office Stationery,People Places & Serv Direct,Amazon UK Retail,H57720170128vqdlpltsb,26.66,Not Applicable,
Department for Business Energy and Industrial Strategy,Intellectual Property Office,24/01/2017,Office Stationery,People Places & Serv Direct,Amazon UK Marketplace,H57720170126vifwclbdm,42.06,Not Applicable,
Department for Business Energy and Industrial Strategy,Intellectual Property Office,24/01/2017,Office Stationery,People Places & Serv Direct,Amazon UK Marketplace,H57720170126gxhbyxlvu,29.08,Not Applicable,
Department for Business Energy and Industrial Strategy,Intellectual Property Office,20/01/2017,Office Stationery,People Places & Serv Direct,Amazon UK Retail,H57720170124joypvlnlc,13.98,Not Applicable,
Department for Business Energy and Industrial Strategy,Intellectual Property Office,13/01/2017,Office Stationery,People Places & Serv Direct,Screwfix Direct,H57720170117ovoozjbnj,34.99,Not Applicable,
Department for Business Energy and Industrial Strategy,Intellectual Property Office,13/01/2017,Office Stationery,People Places & Serv Direct,Screwfix Direct,H57720170117pnlbtokob,54.52,Not Applicable,
Department for Business Energy and Industrial Strategy,Intellectual Property Office,11/01/2017,Office Stationery,People Places & Serv Direct,Screwfix Direct,H57720170113ocgfcypus,50.38,Not Applicable,
Department for Business Energy and Industrial Strategy,Intellectual Property Office,16/01/2017,Seminars and Confereces,People Places & Serv Direct,Przcharge.Prezi.Com,H57720170118bewchfrot,15.6,Not Applicable,
Department for Business Energy and Industrial Strategy,Intellectual Property Office,11/01/2017,Office Stationery,People Places & Serv Direct,Tesco Stores 2931,H57720170113oglkwekkg,1.25,Not Applicable,
Department for Business Energy and Industrial Strategy,Intellectual Property Office,10/01/2017,Seminars and Confereces,People Places & Serv Direct,Baker Ross Ltd,H57720170112emcqnhish,70.99,Not Applicable,
Department for Business Energy and Industrial Strategy,Intellectual Property Office,01/01/2017,Seminars and Confereces,People Places & Serv Direct,Coveritlive Scribbl Cov,H57720170103bshspjiki,41.2,Not Applicable,
Department for Business Energy and Industrial Strategy,Intellectual Property Office,25/01/2017,Career Development Services,People Places & Serv Direct,Amazon UK Retail,H57720170127grfcyhrtn,17.71,Not Applicable,
Department for Business Energy and Industrial Strategy,Intellectual Property Office,25/01/2017,Career Development Services,People Places & Serv Direct,Amazon UK Marketplace,H57720170127jehipxjrv,23.34,Not Applicable,
Department for Business Energy and Industrial Strategy,Intellectual Property Office,10/01/2017,Career Development Services,People Places & Serv Direct,Asda Superstore 4928,H57720170112potrvwgak,28.92,Not Applicable,
Department for Business Energy and Industrial Strategy,Intellectual Property Office,05/01/2017,Career Development Services,People Places & Serv Direct,Www.Westminster-Briefi,H57720170107gqmpdvpbs,300,Not Applicable,
Department for Business Energy and Industrial Strategy,Intellectual Property Office,02/01/2017,Career Development Services,People Places & Serv Direct,Amazon UK Marketplace,H57720170104udelfolsq,8.75,Not Applicable,
Department for Business Energy and Industrial Strategy,Intellectual Property Office,30/12/2016,Career Development Services,People Places & Serv Direct,Amazon UK Marketplace,H57720170103fcbxjuqhm,5.1,Not Applicable,
Department for Business Energy and Industrial Strategy,Intellectual Property Office,18/01/2017,Minor Works-Goods,People Places & Serv Direct,Screwfix Direct,H57720170120ldklzkmit,10.98,Not Applicable,
Department for Business Energy and Industrial Strategy,Intellectual Property Office,17/01/2017,Minor Works-Goods,People Places & Serv Direct,Screwfix Direct,H57720170119dnucqudgj,28.9,Not Applicable,
Department for Business Energy and Industrial Strategy,Intellectual Property Office,10/01/2017,Minor Works-Goods,People Places & Serv Direct,Newey & Eyre,H57720170113jlvqwmqoh,461.94,Not Applicable,
Department for Business Energy and Industrial Strategy,Intellectual Property Office,04/01/2017,Minor Works-Goods,People Places & Serv Direct,Screwfix Direct,H57720170106ymvtorrgm,7.99,Not Applicable,
Department for Business Energy and Industrial Strategy,Intellectual Property Office,03/01/2017,Minor Works-Goods,People Places & Serv Direct,The Colour Centre,H57720170105fydppiwsl,559.08,Not Applicable,
Department for Business Energy and Industrial Strategy,Intellectual Property Office,09/01/2017,Entertainment,International Policy Directorate,Www.Intecoffice.Co.Uk,H57720170111ozdjssggx,384.45,Not Applicable,
Department for Business Energy and Industrial Strategy,Intellectual Property Office,27/01/2017,Seminars and Confereces,International Policy Directorate,B Network,H57720170131ydwbmvyaj,260.98,Not Applicable,
Department for Business Energy and Industrial Strategy,Intellectual Property Office,27/01/2017,Seminars and Confereces,International Policy Directorate,Intl Trademark Assoc,H57720170131sredulgqh,522.35,Not Applicable,
Department for Business Energy and Industrial Strategy,Intellectual Property Office,24/01/2017,Seminars and Confereces,International Policy Directorate,Intl Trademark Assoc,H57720170126vewavklrr,526.52,Not Applicable,
Department for Business Energy and Industrial Strategy,Intellectual Property Office,20/01/2017,Seminars and Confereces,International Policy Directorate,Intl Trademark Assoc,H57720170124xnaoybfiu,533.22,Not Applicable,
Department for Business Energy and Industrial Strategy,Intellectual Property Office,20/01/2017,Seminars and Confereces,International Policy Directorate,B Network,H57720170124bitpvpwwd,265.14,Not Applicable,
Department for Business Energy and Industrial Strategy,Intellectual Property Office,19/01/2017,Seminars and Confereces,International Policy Directorate,B Network,H57720170121shbvpwfmz,265.31,Not Applicable,
Department for Business Energy and Industrial Strategy,Intellectual Property Office,19/01/2017,Seminars and Confereces,International Policy Directorate,Intl Trademark Assoc,H57720170121wehrrgfif,533.61,Not Applicable,
Department for Business Energy and Industrial Strategy,Intellectual Property Office,20/01/2017,Seminars and Confereces,International Policy Directorate,B Network,H57720170124mpudfrdit,221.41,Not Applicable,
Department for Business Energy and Industrial Strategy,Intellectual Property Office,20/01/2017,Seminars and Confereces,International Policy Directorate,Intl Trademark Assoc,H57720170124emkvqvrpt,533.22,Not Applicable,
Department for Business Energy and Industrial Strategy,Intellectual Property Office,05/01/2017,Career Development Services,Patent Directorate,Autosport Internationa,H57720170107hyzeqahcs,224,Not Applicable,
Department for Business Energy and Industrial Strategy,Intellectual Property Office,04/01/2017,T&S O-seas excl EPOQUE,Patent Directorate,Salon De L Automobile,H57720170107psosqimle,26.19,Not Applicable,
Department for Business Energy and Industrial Strategy,Intellectual Property Office,24/01/2017,Perpetual Licences,Projects,Cloudflare,H57720170127mknftcfse,181.35,Not Applicable,
Department for Business Energy and Industrial Strategy,Intellectual Property Office,04/01/2017,Entertainment,Projects,Eden Caterers Ltd,H57720170106yxqhevbez,309.25,Not Applicable,
Department for Business Energy and Industrial Strategy,Intellectual Property Office,11/01/2017,Software Maintenance,Trade Mark Directorate,The Intellectual Property,H57720170113ricsymwqr,-50,Not Applicable,
Department for Business Energy and Industrial Strategy,Intellectual Property Office,10/01/2017,Software Maintenance,Trade Mark Directorate,The Intellectual Property,H57720170112fqxmerhdx,50,Not Applicable,
Department for Business Energy and Industrial Strategy,Intellectual Property Office,25/01/2017,T&S O-seas excl EPOQUE,Trade Mark Directorate,B Network,H57720170127mnviwhnoa,486.77,Not Applicable,
Department for Business Energy and Industrial Strategy,Intellectual Property Office,25/01/2017,T&S O-seas excl EPOQUE,Trade Mark Directorate,B Network,H57720170127otkxiosrx,324.51,Not Applicable,
Department for Business Energy and Industrial Strategy,Intellectual Property Office,25/01/2017,T&S O-seas excl EPOQUE,Trade Mark Directorate,B Network,H57720170127kugxcoofv,486.77,Not Applicable,
Department for Business Energy and Industrial Strategy,Intellectual Property Office,25/01/2017,T&S O-seas excl EPOQUE,Trade Mark Directorate,B Network,H57720170127eigdkomwh,243.39,Not Applicable,
Department for Business Energy and Industrial Strategy,Intellectual Property Office,25/01/2017,T&S O-seas excl EPOQUE,Trade Mark Directorate,B Network,H57720170127lflwfbggq,324.51,Not Applicable,
Department for Business Energy and Industrial Strategy,Intellectual Property Office,25/01/2017,T&S O-seas excl EPOQUE,Trade Mark Directorate,B Network,H57720170127plfuwwxdn,243.39,Not Applicable,
Department for Business Energy and Industrial Strategy,Intellectual Property Office,25/01/2017,T&S O-seas excl EPOQUE,Trade Mark Directorate,B Network,H57720170127rciyushlc,486.77,Not Applicable,
Department for Business Energy and Industrial Strategy,Intellectual Property Office,25/01/2017,T&S O-seas excl EPOQUE,Trade Mark Directorate,B Network,H57720170127vlzwbcbjj,599.45,Not Applicable,
Department for Business Energy and Industrial Strategy,Intellectual Property Office,25/01/2017,T&S O-seas excl EPOQUE,Trade Mark Directorate,B Network,H57720170127yqnqnlsno,486.77,Not Applicable,
